[Event "January 9 Early 2024"]
[Site "https://www.chess.com"]
[Date "2024.01.11"]
[Round "9"]
[White "Swicarz, Maciej"]
[Black "Kislinsky, Alexey"]
[Result "1-0"]
[Board "76"]
[TimeControl "180+1"]
[WhiteFideId "1113585"]
[BlackFideId "14108801"]
[WhiteElo "2508"]
[BlackElo "2715"]
[WhiteTeam "POL"]
[BlackTeam "CZE"]
[WhiteClock "0:00:30"]
[BlackClock "0:00:58"]

1. e4 {[%clk 0:03:00]}  c5 {[%clk 0:02:59]} 2. Nf3 {[%clk 0:02:59]}  Nc6 {[%clk 0:03:00]} 3. d4 {[%clk 0:02:59]}  cxd4 {[%clk 0:03:00]} 4. Nxd4 {[%clk 0:02:59]}  Nf6 {[%clk 0:03:01]} 5. Nc3 {[%clk 0:02:59]}  e5 {[%clk 0:03:01]} 6. Ndb5 {[%clk 0:02:58]}  d6 {[%clk 0:03:00]} 7. Bg5 {[%clk 0:02:56]}  a6 {[%clk 0:03:01]} 8. Na3 {[%clk 0:02:56]}  b5 {[%clk 0:03:01]} 9. Nd5 {[%clk 0:02:56]}  Be7 {[%clk 0:03:01]} 10. Bxf6 {[%clk 0:02:55]}  Bxf6 {[%clk 0:03:01]} 11. c4 {[%clk 0:02:55]}  b4 {[%clk 0:03:01]} 12. Nc2 {[%clk 0:02:55]}  a5 {[%clk 0:03:02]} 13. Be2 {[%clk 0:02:51]}  O-O {[%clk 0:03:00]} 14. O-O {[%clk 0:02:48]}  Bg5 {[%clk 0:03:00]} 15. g3 {[%clk 0:02:47]}  Be6 {[%clk 0:02:55]} 16. Bg4 {[%clk 0:02:46]}  Rb8 {[%clk 0:02:49]} 17. b3 {[%clk 0:02:46]}  Qd7 {[%clk 0:02:46]} 18. Nde3 {[%clk 0:02:43]}  Bxe3 {[%clk 0:02:36]} 19. Nxe3 {[%clk 0:02:43]}  Nd4 {[%clk 0:02:36]} 20. Kg2 {[%clk 0:02:38]}  g6 {[%clk 0:02:35]} 21. Bxe6 {[%clk 0:02:33]}  fxe6 {[%clk 0:02:34]} 22. Nc2 {[%clk 0:02:33]}  Qc6 {[%clk 0:02:20]} 23. Nxd4 {[%clk 0:02:14]}  Qxe4+ {[%clk 0:02:02]} 24. Nf3 {[%clk 0:02:14]}  Rf6 {[%clk 0:02:01]} 25. Re1 {[%clk 0:02:14]}  Qc6 {[%clk 0:02:01]} 26. Re3 {[%clk 0:02:09]}  Rbf8 {[%clk 0:02:00]} 27. Qe2 {[%clk 0:01:58]}  g5 {[%clk 0:01:56]} 28. h3 {[%clk 0:01:57]}  h5 {[%clk 0:01:56]} 29. g4 {[%clk 0:01:56]}  hxg4 {[%clk 0:01:56]} 30. hxg4 {[%clk 0:01:57]}  Rf4 {[%clk 0:01:53]} 31. Kg3 {[%clk 0:01:56]}  Qc5 {[%clk 0:01:38]} 32. Rh1 {[%clk 0:01:48]}  e4 {[%clk 0:01:36]} 33. Ne1 {[%clk 0:01:20]}  Qe5 {[%clk 0:01:33]} 34. Kg2 {[%clk 0:01:18]}  Rxf2+ {[%clk 0:01:24]} 35. Qxf2 {[%clk 0:01:19]}  Rxf2+ {[%clk 0:01:24]} 36. Kxf2 {[%clk 0:01:20]}  Qf4+ {[%clk 0:01:24]} 37. Ke2 {[%clk 0:01:18]}  d5 {[%clk 0:01:24]} 38. cxd5 {[%clk 0:00:49]}  exd5 {[%clk 0:01:24]} 39. Reh3 {[%clk 0:00:49]}  Qxg4+ {[%clk 0:01:18]} 40. Ke3 {[%clk 0:00:49]}  Qf4+ {[%clk 0:01:15]} 41. Kd4 {[%clk 0:00:48]}  g4 {[%clk 0:01:04]} 42. Rh8+ {[%clk 0:00:45]}  Kg7 {[%clk 0:01:04]} 43. Kxd5 {[%clk 0:00:43]}  e3 {[%clk 0:01:03]} 44. Nd3 {[%clk 0:00:40]}  Qf3+ {[%clk 0:01:03]} 45. Kd4 {[%clk 0:00:40]}  e2 {[%clk 0:01:01]} 46. R1h7+ {[%clk 0:00:35]}  Kg6 {[%clk 0:01:01]} 47. Ne5+ {[%clk 0:00:35]}  Kg5 {[%clk 0:01:00]} 48. Rg8+ {[%clk 0:00:30]}  Kf4 {[%clk 0:00:59]} 49. Rf7+ {[%clk 0:00:30]}  Kg3 {[%clk 0:00:58]} 50. Rxf3+ {[%clk 0:00:30]} 1-0

[Event "January 9 Early 2024"]
[Site "https://www.chess.com"]
[Date "2024.01.11"]
[Round "9"]
[White "Rangel, Daniel"]
[Black "Limontaite, Simona"]
[Result "1-0"]
[Board "78"]
[TimeControl "180+1"]
[WhiteFideId "2124475"]
[BlackFideId "12802506"]
[WhiteElo "2500"]
[BlackElo "2321"]
[WhiteTeam "BRA"]
[BlackTeam "LTU"]
[WhiteClock "0:00:42"]
[BlackClock "0:00:08"]

1. d4 {[%clk 0:03:00]}  Nf6 {[%clk 0:02:58]} 2. Nf3 {[%clk 0:03:01]}  b6 {[%clk 0:02:58]} 3. Bf4 {[%clk 0:03:02]}  Bb7 {[%clk 0:02:58]} 4. e3 {[%clk 0:03:02]}  g6 {[%clk 0:02:59]} 5. Be2 {[%clk 0:03:00]}  Bg7 {[%clk 0:02:59]} 6. O-O {[%clk 0:03:00]}  O-O {[%clk 0:02:59]} 7. a4 {[%clk 0:03:00]}  d6 {[%clk 0:03:00]} 8. a5 {[%clk 0:02:59]}  c5 {[%clk 0:02:47]} 9. h3 {[%clk 0:02:57]}  Nbd7 {[%clk 0:02:42]} 10. c3 {[%clk 0:02:54]}  Re8 {[%clk 0:02:36]} 11. Nbd2 {[%clk 0:02:46]}  cxd4 {[%clk 0:02:34]} 12. exd4 {[%clk 0:02:45]}  Ne4 {[%clk 0:02:28]} 13. a6 {[%clk 0:02:32]}  Bc6 {[%clk 0:02:24]} 14. Nxe4 {[%clk 0:02:29]}  Bxe4 {[%clk 0:02:24]} 15. Bd3 {[%clk 0:02:30]}  Bc6 {[%clk 0:02:09]} 16. Re1 {[%clk 0:02:24]}  b5 {[%clk 0:02:07]} 17. Qe2 {[%clk 0:02:22]}  Qb6 {[%clk 0:02:05]} 18. h4 {[%clk 0:02:14]}  e5 {[%clk 0:02:01]} 19. dxe5 {[%clk 0:02:09]}  dxe5 {[%clk 0:01:59]} 20. Be3 {[%clk 0:02:10]}  Qb8 {[%clk 0:01:52]} 21. Ng5 {[%clk 0:02:07]}  Nf6 {[%clk 0:01:39]} 22. Bc5 {[%clk 0:02:02]}  e4 {[%clk 0:01:31]} 23. Bc2 {[%clk 0:01:53]}  h6 {[%clk 0:01:16]} 24. Nh3 {[%clk 0:01:46]}  Nh5 {[%clk 0:01:12]} 25. Bb3 {[%clk 0:01:41]}  Qc7 {[%clk 0:00:49]} 26. Rad1 {[%clk 0:01:14]}  Rad8 {[%clk 0:00:46]} 27. Qg4 {[%clk 0:01:11]}  Kh7 {[%clk 0:00:44]} 28. Be3 {[%clk 0:01:00]}  f5 {[%clk 0:00:44]} 29. Qe2 {[%clk 0:00:59]}  f4 {[%clk 0:00:42]} 30. Bd4 {[%clk 0:00:58]}  f3 {[%clk 0:00:27]} 31. Qe3 {[%clk 0:00:51]}  Be5 {[%clk 0:00:20]} 32. Bxe5 {[%clk 0:00:47]}  Qxe5 {[%clk 0:00:13]} 33. Qxa7+ {[%clk 0:00:44]}  Kh8 {[%clk 0:00:10]} 34. Qe3 {[%clk 0:00:42]}  Qf5 {[%clk 0:00:08]} 35. Qxh6# {[%clk 0:00:42]} 1-0

[Event "January 9 Early 2024"]
[Site "https://www.chess.com"]
[Date "2024.01.11"]
[Round "9"]
[White "Zgadzaj, Rafal"]
[Black "Guevara Sanchez, Erick Marvin"]
[Result "1-0"]
[Board "79"]
[TimeControl "180+1"]
[WhiteFideId "1113712"]
[BlackFideId "6700136"]
[WhiteElo "2339"]
[BlackElo "2207"]
[WhiteTeam "POL"]
[BlackTeam "ESA"]
[WhiteClock "0:01:45"]
[BlackClock "0:00:05"]

1. e4 {[%clk 0:02:58]}  e6 {[%clk 0:02:57]} 2. b3 {[%clk 0:02:53]}  d5 {[%clk 0:02:55]} 3. exd5 {[%clk 0:02:53]}  exd5 {[%clk 0:02:54]} 4. Bb2 {[%clk 0:02:54]}  Nf6 {[%clk 0:02:54]} 5. Ne2 {[%clk 0:02:51]}  Bd6 {[%clk 0:02:50]} 6. g3 {[%clk 0:02:51]}  O-O {[%clk 0:02:44]} 7. Bg2 {[%clk 0:02:51]}  Re8 {[%clk 0:02:40]} 8. O-O {[%clk 0:02:51]}  c5 {[%clk 0:02:34]} 9. d4 {[%clk 0:02:50]}  Nc6 {[%clk 0:02:32]} 10. dxc5 {[%clk 0:02:48]}  Bxc5 {[%clk 0:02:31]} 11. Nd4 {[%clk 0:02:47]}  Bg4 {[%clk 0:02:02]} 12. f3 {[%clk 0:02:45]}  Be6 {[%clk 0:01:49]} 13. Kh1 {[%clk 0:02:40]}  Qe7 {[%clk 0:01:42]} 14. Nxc6 {[%clk 0:02:38]}  bxc6 {[%clk 0:01:41]} 15. Nc3 {[%clk 0:02:38]}  Rad8 {[%clk 0:01:40]} 16. Qd2 {[%clk 0:02:37]}  Bb4 {[%clk 0:01:30]} 17. a3 {[%clk 0:02:36]}  Ba5 {[%clk 0:01:22]} 18. b4 {[%clk 0:02:35]}  Bb6 {[%clk 0:01:22]} 19. Rae1 {[%clk 0:02:36]}  a5 {[%clk 0:01:17]} 20. Na4 {[%clk 0:02:31]}  Bc7 {[%clk 0:01:05]} 21. Nc5 {[%clk 0:02:30]}  axb4 {[%clk 0:01:03]} 22. axb4 {[%clk 0:02:31]}  Rb8 {[%clk 0:01:00]} 23. Bd4 {[%clk 0:02:27]}  Rb5 {[%clk 0:00:51]} 24. c3 {[%clk 0:02:27]}  Ra8 {[%clk 0:00:45]} 25. Bh3 {[%clk 0:02:26]}  Re8 {[%clk 0:00:11]} 26. Bxe6 {[%clk 0:02:14]}  fxe6 {[%clk 0:00:12]} 27. Rxe6 {[%clk 0:02:14]}  Qf7 {[%clk 0:00:12]} 28. Rfe1 {[%clk 0:02:12]}  Rxe6 {[%clk 0:00:12]} 29. Nxe6 {[%clk 0:02:12]}  h5 {[%clk 0:00:10]} 30. Bxf6 {[%clk 0:02:08]}  gxf6 {[%clk 0:00:07]} 31. Nd4 {[%clk 0:02:08]}  Rb8 {[%clk 0:00:06]} 32. Nf5 {[%clk 0:02:09]}  Ra8 {[%clk 0:00:05]} 33. Re7 {[%clk 0:02:05]}  Qg6 {[%clk 0:00:04]} 34. Rg7+ {[%clk 0:02:02]}  Qxg7 {[%clk 0:00:04]} 35. Nxg7 {[%clk 0:02:03]}  Kxg7 {[%clk 0:00:05]} 36. Kg2 {[%clk 0:02:03]}  Ra1 {[%clk 0:00:04]} 37. Qe2 {[%clk 0:02:01]}  Bb6 {[%clk 0:00:05]} 38. Qe7+ {[%clk 0:02:00]}  Kg6 {[%clk 0:00:05]} 39. Kh3 {[%clk 0:02:01]}  Rf1 {[%clk 0:00:04]} 40. Qe8+ {[%clk 0:02:00]}  Kg7 {[%clk 0:00:02]} 41. Qxc6 {[%clk 0:02:01]}  Bg1 {[%clk 0:00:01]} 42. Qc7+ {[%clk 0:01:51]}  Kg6 {[%clk 0:00:01]} 43. Kg2 {[%clk 0:01:45]}  Rf2+ {[%clk 0:00:02]} 44. Kxg1 {[%clk 0:01:45]}  Rc2 {[%clk 0:00:02]} 45. Qc5 {[%clk 0:01:42]}  d4 {[%clk 0:00:03]} 46. Qxd4 {[%clk 0:01:43]}  Rc1+ {[%clk 0:00:03]} 47. Kf2 {[%clk 0:01:42]}  Rc2+ {[%clk 0:00:04]} 48. Ke3 {[%clk 0:01:43]}  Rc1 {[%clk 0:00:05]} 49. Qd3+ {[%clk 0:01:43]}  Kg7 {[%clk 0:00:05]} 50. b5 {[%clk 0:01:44]}  Re1+ {[%clk 0:00:05]} 51. Kf4 {[%clk 0:01:44]}  Re5 {[%clk 0:00:05]} 52. Qd7+ {[%clk 0:01:44]}  Kg6 {[%clk 0:00:05]} 53. g4 {[%clk 0:01:43]}  Rc5 {[%clk 0:00:05]} 54. Qf5+ {[%clk 0:01:42]}  Rxf5+ {[%clk 0:00:05]} 55. gxf5+ {[%clk 0:01:43]}  Kf7 {[%clk 0:00:05]} 56. b6 {[%clk 0:01:44]}  Ke7 {[%clk 0:00:05]} 57. b7 {[%clk 0:01:45]} 1-0

[Event "January 9 Early 2024"]
[Site "https://www.chess.com"]
[Date "2024.01.11"]
[Round "9"]
[White "Szpar, Milosz"]
[Black "Kleiman, Jake"]
[Result "1-0"]
[Board "80"]
[TimeControl "180+1"]
[WhiteFideId "1184989"]
[BlackFideId "2020041"]
[WhiteElo "2845"]
[BlackElo "2650"]
[WhiteTeam "POL"]
[BlackTeam "USA"]
[WhiteClock "0:00:52"]
[BlackClock "0:00:22"]

1. e4 {[%clk 0:03:00]}  e5 {[%clk 0:02:59]} 2. Nf3 {[%clk 0:03:01]}  Nc6 {[%clk 0:02:59]} 3. Nc3 {[%clk 0:03:00]}  Nf6 {[%clk 0:02:59]} 4. Bb5 {[%clk 0:03:00]}  Bd6 {[%clk 0:02:58]} 5. d3 {[%clk 0:03:00]}  O-O {[%clk 0:02:58]} 6. a3 {[%clk 0:03:00]}  Re8 {[%clk 0:02:55]} 7. Bc4 {[%clk 0:02:59]}  Bc5 {[%clk 0:02:52]} 8. Bg5 {[%clk 0:02:40]}  Be7 {[%clk 0:02:45]} 9. O-O {[%clk 0:02:38]}  d6 {[%clk 0:02:46]} 10. h3 {[%clk 0:02:36]}  h6 {[%clk 0:02:43]} 11. Bxf6 {[%clk 0:02:36]}  Bxf6 {[%clk 0:02:42]} 12. Nd5 {[%clk 0:02:37]}  Be6 {[%clk 0:02:34]} 13. b4 {[%clk 0:02:36]}  g6 {[%clk 0:02:30]} 14. c3 {[%clk 0:02:35]}  Bg7 {[%clk 0:02:29]} 15. Qb3 {[%clk 0:02:34]}  Kh8 {[%clk 0:02:23]} 16. Rfe1 {[%clk 0:02:21]}  Qd7 {[%clk 0:02:11]} 17. a4 {[%clk 0:02:18]}  f5 {[%clk 0:02:03]} 18. a5 {[%clk 0:02:17]}  Nd8 {[%clk 0:01:57]} 19. d4 {[%clk 0:02:01]}  fxe4 {[%clk 0:01:39]} 20. Rxe4 {[%clk 0:02:00]}  c6 {[%clk 0:01:22]} 21. dxe5 {[%clk 0:01:57]}  cxd5 {[%clk 0:01:20]} 22. Bxd5 {[%clk 0:01:57]}  Bxd5 {[%clk 0:01:00]} 23. Qxd5 {[%clk 0:01:58]}  Qc6 {[%clk 0:00:57]} 24. Qd3 {[%clk 0:01:58]}  dxe5 {[%clk 0:00:56]} 25. Rae1 {[%clk 0:01:58]}  Nf7 {[%clk 0:00:56]} 26. Nh4 {[%clk 0:01:57]}  Rad8 {[%clk 0:00:54]} 27. Qc2 {[%clk 0:01:56]}  Kh7 {[%clk 0:00:53]} 28. Rg4 {[%clk 0:01:56]}  Rd6 {[%clk 0:00:53]} 29. Re3 {[%clk 0:01:55]}  h5 {[%clk 0:00:51]} 30. Rgg3 {[%clk 0:01:49]}  Bh6 {[%clk 0:00:45]} 31. Re4 {[%clk 0:01:45]}  Ng5 {[%clk 0:00:42]} 32. Re1 {[%clk 0:01:42]}  e4 {[%clk 0:00:41]} 33. Kh1 {[%clk 0:01:40]}  Red8 {[%clk 0:00:39]} 34. Qb3 {[%clk 0:01:27]}  Qd5 {[%clk 0:00:36]} 35. c4 {[%clk 0:01:23]}  Qf7 {[%clk 0:00:34]} 36. Re2 {[%clk 0:01:14]}  Rd1+ {[%clk 0:00:32]} 37. Kh2 {[%clk 0:01:14]}  R8d3 {[%clk 0:00:30]} 38. Qa4 {[%clk 0:01:06]}  Qf4 {[%clk 0:00:26]} 39. Qe8 {[%clk 0:00:59]}  Rd7 {[%clk 0:00:22]} 40. Qxg6+ {[%clk 0:00:54]}  Kh8 {[%clk 0:00:22]} 41. Qxh6+ {[%clk 0:00:52]} 1-0

[Event "January 9 Early 2024"]
[Site "https://www.chess.com"]
[Date "2024.01.11"]
[Round "9"]
[White "Giri, Anish"]
[Black "Sturt, Raven"]
[Result "1/2-1/2"]
[Board "83"]
[TimeControl "180+1"]
[WhiteFideId "24116068"]
[BlackFideId "2007304"]
[WhiteElo "3004"]
[BlackElo "2788"]
[WhiteTeam "NED"]
[BlackTeam "USA"]
[WhiteClock "0:00:16"]
[BlackClock "0:00:49"]

1. Nf3 {[%clk 0:03:00]}  f5 {[%clk 0:03:00]} 2. g3 {[%clk 0:03:00]}  Nf6 {[%clk 0:02:59]} 3. Bg2 {[%clk 0:03:01]}  g6 {[%clk 0:03:00]} 4. O-O {[%clk 0:03:01]}  Bg7 {[%clk 0:03:00]} 5. d4 {[%clk 0:03:02]}  O-O {[%clk 0:03:01]} 6. c4 {[%clk 0:03:02]}  d6 {[%clk 0:03:02]} 7. Nc3 {[%clk 0:03:03]}  Qe8 {[%clk 0:03:02]} 8. Re1 {[%clk 0:02:54]}  Qf7 {[%clk 0:03:00]} 9. e4 {[%clk 0:02:38]}  fxe4 {[%clk 0:03:00]} 10. Ng5 {[%clk 0:02:37]}  Qxc4 {[%clk 0:02:59]} 11. Bf1 {[%clk 0:02:19]}  Qb4 {[%clk 0:02:59]} 12. a3 {[%clk 0:02:14]}  Qa5 {[%clk 0:02:56]} 13. Qb3+ {[%clk 0:02:13]}  d5 {[%clk 0:02:47]} 14. Ngxe4 {[%clk 0:01:42]}  c6 {[%clk 0:02:42]} 15. Nxf6+ {[%clk 0:01:38]}  exf6 {[%clk 0:02:38]} 16. Bf4 {[%clk 0:01:38]}  Qb6 {[%clk 0:02:30]} 17. Qa2 {[%clk 0:01:24]}  Qd8 {[%clk 0:02:29]} 18. b4 {[%clk 0:01:23]}  Na6 {[%clk 0:02:23]} 19. Bxa6 {[%clk 0:00:40]}  bxa6 {[%clk 0:02:22]} 20. Na4 {[%clk 0:00:41]}  g5 {[%clk 0:02:19]} 21. Bd2 {[%clk 0:00:40]}  Bg4 {[%clk 0:02:08]} 22. Nc5 {[%clk 0:00:39]}  Re8 {[%clk 0:02:08]} 23. Qb3 {[%clk 0:00:36]}  Qc7 {[%clk 0:02:04]} 24. Qd3 {[%clk 0:00:34]}  a5 {[%clk 0:02:01]} 25. bxa5 {[%clk 0:00:34]}  Qf7 {[%clk 0:01:59]} 26. f3 {[%clk 0:00:29]}  Bh5 {[%clk 0:01:59]} 27. Rxe8+ {[%clk 0:00:29]}  Rxe8 {[%clk 0:01:58]} 28. Re1 {[%clk 0:00:30]}  Bg6 {[%clk 0:01:56]} 29. Rxe8+ {[%clk 0:00:29]}  Qxe8 {[%clk 0:01:57]} 30. Qe3 {[%clk 0:00:27]}  Bf8 {[%clk 0:01:45]} 31. Qxe8 {[%clk 0:00:24]}  Bxe8 {[%clk 0:01:46]} 32. Bb4 {[%clk 0:00:23]}  Bxc5 {[%clk 0:01:08]} 33. Bxc5 {[%clk 0:00:23]}  a6 {[%clk 0:01:09]} 34. Kf2 {[%clk 0:00:22]}  Kf7 {[%clk 0:01:08]} 35. Ke3 {[%clk 0:00:21]}  Ke6 {[%clk 0:01:08]} 36. Bb4 {[%clk 0:00:18]}  Bg6 {[%clk 0:01:08]} 37. Bc5 {[%clk 0:00:18]}  h6 {[%clk 0:01:06]} 38. Bf8 {[%clk 0:00:18]}  h5 {[%clk 0:01:07]} 39. Bc5 {[%clk 0:00:18]}  Bb1 {[%clk 0:01:05]} 40. Bb4 {[%clk 0:00:18]}  Kf5 {[%clk 0:01:03]} 41. Bc5 {[%clk 0:00:17]}  g4 {[%clk 0:01:00]} 42. f4 {[%clk 0:00:15]}  Be4 {[%clk 0:00:57]} 43. Bb4 {[%clk 0:00:16]}  Bc2 {[%clk 0:00:56]} 44. Bc5 {[%clk 0:00:16]}  Ba4 {[%clk 0:00:56]} 45. Bb4 {[%clk 0:00:16]}  Bb5 {[%clk 0:00:49]} 1/2-1/2

[Event "January 9 Early 2024"]
[Site "https://www.chess.com"]
[Date "2024.01.11"]
[Round "9"]
[White "Weetik, Vjacheslav"]
[Black "Popov, Konstantin"]
[Result "0-1"]
[Board "84"]
[TimeControl "180+1"]
[WhiteFideId "4153472"]
[BlackFideId "34137910"]
[WhiteElo "2754"]
[BlackElo "2911"]
[WhiteTeam "RUS"]
[BlackTeam "FID"]
[WhiteClock "0:00:01"]
[BlackClock "0:00:45"]

1. e4 {[%clk 0:02:57]}  c5 {[%clk 0:02:59]} 2. Nf3 {[%clk 0:02:57]}  d6 {[%clk 0:03:00]} 3. Bb5+ {[%clk 0:02:56]}  Nd7 {[%clk 0:02:59]} 4. d4 {[%clk 0:02:50]}  cxd4 {[%clk 0:02:58]} 5. Qxd4 {[%clk 0:02:50]}  a6 {[%clk 0:02:59]} 6. Be2 {[%clk 0:02:45]}  Ngf6 {[%clk 0:02:59]} 7. c4 {[%clk 0:02:42]}  e5 {[%clk 0:02:58]} 8. Qe3 {[%clk 0:02:41]}  Be7 {[%clk 0:02:58]} 9. Nc3 {[%clk 0:02:40]}  O-O {[%clk 0:02:59]} 10. O-O {[%clk 0:02:39]}  b6 {[%clk 0:02:59]} 11. h3 {[%clk 0:02:34]}  Bb7 {[%clk 0:02:59]} 12. b3 {[%clk 0:02:17]}  Nc5 {[%clk 0:02:58]} 13. Nd2 {[%clk 0:02:13]}  Ne6 {[%clk 0:02:57]} 14. Bb2 {[%clk 0:01:57]}  Nd7 {[%clk 0:02:56]} 15. Nf3 {[%clk 0:01:52]}  Nf4 {[%clk 0:02:33]} 16. Rfd1 {[%clk 0:01:50]}  Qc7 {[%clk 0:02:33]} 17. Bf1 {[%clk 0:01:49]}  Nc5 {[%clk 0:02:31]} 18. g3 {[%clk 0:01:38]}  Ng6 {[%clk 0:02:24]} 19. Nd5 {[%clk 0:01:34]}  Bxd5 {[%clk 0:02:24]} 20. cxd5 {[%clk 0:01:28]}  f5 {[%clk 0:02:24]} 21. exf5 {[%clk 0:01:27]}  Rxf5 {[%clk 0:02:25]} 22. b4 {[%clk 0:01:17]}  Raf8 {[%clk 0:02:24]} 23. Bg2 {[%clk 0:00:56]}  Na4 {[%clk 0:02:16]} 24. Rac1 {[%clk 0:00:49]}  Qd8 {[%clk 0:02:12]} 25. Ba1 {[%clk 0:00:49]}  Qe8 {[%clk 0:02:04]} 26. h4 {[%clk 0:00:36]}  Qf7 {[%clk 0:01:57]} 27. Nd2 {[%clk 0:00:18]}  Nxh4 {[%clk 0:01:27]} 28. gxh4 {[%clk 0:00:16]}  Bxh4 {[%clk 0:01:27]} 29. Ne4 {[%clk 0:00:16]}  Qg6 {[%clk 0:01:22]} 30. Rf1 {[%clk 0:00:11]}  Rf3 {[%clk 0:01:21]} 31. Qe2 {[%clk 0:00:11]}  R3f4 {[%clk 0:01:19]} 32. Ng3 {[%clk 0:00:10]}  b5 {[%clk 0:01:15]} 33. Be4 {[%clk 0:00:09]}  Qg5 {[%clk 0:01:06]} 34. Kg2 {[%clk 0:00:07]}  Nb6 {[%clk 0:01:01]} 35. Kh3 {[%clk 0:00:03]}  Nc4 {[%clk 0:00:51]} 36. Rcd1 {[%clk 0:00:01]}  Rxf2 {[%clk 0:00:45]} 37. Rxf2 {[%clk 0:00:01]}  Qxg3# {[%clk 0:00:45]} 0-1

[Event "January 9 Early 2024"]
[Site "https://www.chess.com"]
[Date "2024.01.11"]
[Round "9"]
[White "Gokerkan, Cem Kaan"]
[Black "Aadit Bhatia"]
[Result "1-0"]
[Board "85"]
[TimeControl "180+1"]
[WhiteFideId "6336760"]
[BlackFideId "25088955"]
[WhiteElo "2809"]
[BlackElo "2466"]
[WhiteTeam "TUR"]
[BlackTeam "IND"]
[WhiteClock "0:00:18"]
[BlackClock "0:00:14"]

1. e4 {[%clk 0:03:00]}  e5 {[%clk 0:02:58]} 2. Nf3 {[%clk 0:02:57]}  Nc6 {[%clk 0:02:58]} 3. Bc4 {[%clk 0:02:57]}  Nf6 {[%clk 0:02:58]} 4. d4 {[%clk 0:02:56]}  exd4 {[%clk 0:02:56]} 5. e5 {[%clk 0:02:57]}  Ne4 {[%clk 0:02:51]} 6. Qe2 {[%clk 0:02:51]}  Nc5 {[%clk 0:02:47]} 7. O-O {[%clk 0:02:51]}  Be7 {[%clk 0:02:42]} 8. Rd1 {[%clk 0:02:49]}  O-O {[%clk 0:02:38]} 9. Nxd4 {[%clk 0:02:45]}  Nxd4 {[%clk 0:02:27]} 10. Rxd4 {[%clk 0:02:46]}  Ne6 {[%clk 0:02:27]} 11. Rd1 {[%clk 0:02:40]}  Kh8 {[%clk 0:02:16]} 12. Nc3 {[%clk 0:02:39]}  d6 {[%clk 0:01:57]} 13. Ne4 {[%clk 0:02:32]}  Ng5 {[%clk 0:01:41]} 14. exd6 {[%clk 0:02:12]}  cxd6 {[%clk 0:01:24]} 15. Bxg5 {[%clk 0:01:55]}  Bxg5 {[%clk 0:01:25]} 16. Nxd6 {[%clk 0:01:55]}  Qf6 {[%clk 0:00:56]} 17. h4 {[%clk 0:01:37]}  Bxh4 {[%clk 0:00:30]} 18. g3 {[%clk 0:01:01]}  Bg5 {[%clk 0:00:30]} 19. Ne4 {[%clk 0:00:36]}  Qg6 {[%clk 0:00:24]} 20. Rd6 {[%clk 0:00:32]}  Be6 {[%clk 0:00:20]} 21. Bxe6 {[%clk 0:00:30]}  fxe6 {[%clk 0:00:21]} 22. Rad1 {[%clk 0:00:26]}  Be7 {[%clk 0:00:19]} 23. Rd7 {[%clk 0:00:26]}  Rf7 {[%clk 0:00:18]} 24. Rxb7 {[%clk 0:00:25]}  Raf8 {[%clk 0:00:18]} 25. Rdd7 {[%clk 0:00:25]}  Bg5 {[%clk 0:00:15]} 26. Rxf7 {[%clk 0:00:24]}  Rxf7 {[%clk 0:00:14]} 27. Rb8+ {[%clk 0:00:18]} 1-0

[Event "January 9 Early 2024"]
[Site "https://www.chess.com"]
[Date "2024.01.11"]
[Round "9"]
[White "Averchenko, Sergej"]
[Black "Soraas, Torben"]
[Result "0-1"]
[Board "86"]
[TimeControl "180+1"]
[WhiteFideId "4131533"]
[BlackFideId "1503529"]
[WhiteElo "1997"]
[BlackElo "2279"]
[WhiteTeam "RUS"]
[BlackTeam "NOR"]
[WhiteClock "0:00:10"]
[BlackClock "0:00:27"]

1. d4 {[%clk 0:03:00]}  Nf6 {[%clk 0:02:58]} 2. c4 {[%clk 0:03:00]}  c5 {[%clk 0:02:59]} 3. d5 {[%clk 0:03:00]}  b5 {[%clk 0:02:59]} 4. cxb5 {[%clk 0:02:59]}  a6 {[%clk 0:02:59]} 5. bxa6 {[%clk 0:03:00]}  g6 {[%clk 0:03:00]} 6. Nc3 {[%clk 0:03:00]}  Bg7 {[%clk 0:03:01]} 7. Nf3 {[%clk 0:03:01]}  O-O {[%clk 0:03:00]} 8. h3 {[%clk 0:02:56]}  Qa5 {[%clk 0:02:58]} 9. Nd2 {[%clk 0:02:42]}  Bxa6 {[%clk 0:02:52]} 10. e4 {[%clk 0:02:40]}  Bxf1 {[%clk 0:02:44]} 11. Kxf1 {[%clk 0:02:41]}  e6 {[%clk 0:02:35]} 12. d6 {[%clk 0:02:24]}  Ne8 {[%clk 0:02:16]} 13. Nc4 {[%clk 0:02:01]}  Qa6 {[%clk 0:02:15]} 14. Qd3 {[%clk 0:01:59]}  Nxd6 {[%clk 0:02:10]} 15. Qxd6 {[%clk 0:01:32]}  Qxc4+ {[%clk 0:02:09]} 16. Kg1 {[%clk 0:01:33]}  Ra6 {[%clk 0:01:27]} 17. Qg3 {[%clk 0:01:32]}  Nc6 {[%clk 0:01:17]} 18. Kh2 {[%clk 0:01:24]}  Rb8 {[%clk 0:01:09]} 19. Rd1 {[%clk 0:01:17]}  Rb7 {[%clk 0:01:08]} 20. Kg1 {[%clk 0:00:36]}  Nd4 {[%clk 0:01:07]} 21. Qg5 {[%clk 0:00:27]}  h6 {[%clk 0:00:57]} 22. Qd8+ {[%clk 0:00:24]}  Kh7 {[%clk 0:00:57]} 23. Bd2 {[%clk 0:00:17]}  Rxb2 {[%clk 0:00:52]} 24. Qxd7 {[%clk 0:00:18]}  Rxd2 {[%clk 0:00:50]} 25. Rxd2 {[%clk 0:00:17]}  Qxc3 {[%clk 0:00:50]} 26. Rad1 {[%clk 0:00:18]}  Qc4 {[%clk 0:00:27]} 27. Qxf7 {[%clk 0:00:16]}  Rxa2 {[%clk 0:00:27]} 28. Rxa2 {[%clk 0:00:12]}  Qxa2 {[%clk 0:00:28]} 29. Rc1 {[%clk 0:00:10]}  Ne2+ {[%clk 0:00:27]} 0-1